bitfinex-derivatives/quotes_ETHF0:USTF0_20240924
["timestamp","ask_amount","ask_price","bid_price","bid_amount"]
[1727172847831,1.9682,2647.7,2647.6,0.99150942]
[1727172848131,1.322,2647.6,2647.5,0.374]
[1727172848327,5.501,2647.6,2647.5,0.374]
[1727172850229,0.37774,2647.4,2647.3,0.3641]
[1727172850435,0.37774,2647.4,2647.3,1.1186]
[1727172859939,3.32774,2647.4,2647.3,1.1186]
[1727172866146,0.37774,2647.4,2647.3,1.1186]
[1727172866343,3.32774,2647.4,2647.3,1.1186]
[1727172867647,0.37774,2647.4,2647.3,1.49636]
[1727172867847,0.37774,2647.5,2647.4,0.37774]
[1727172868048,3.32774,2647.5,2647.4,0.37774]
[1727172870641,2.95,2647.5,2647.3,1.1186]
[1727172871649,3.32774,2647.5,2647.4,0.37774]
[1727172873249,0.37774,2647.4,2647.3,1.49635]
[1727172874943,3.32774,2647.5,2647.4,0.37774]
[1727172876249,0.37774,2647.4,2647.3,1.49635]
[1727172877845,0.37774,2647.4,2647.3,1.49636]
[1727172880153,1.36268152,2647.4,2647.3,1.49636]
[1727172883153,1.85515228,2647.4,2647.3,1.49636]
[1727172884352,0.37774,2647.4,2647.3,1.1186]
[1727172884854,0.37774,2647.4,2647.3,1.49636]
[1727172885050,0.37774,2647.4,2647.3,1.1186]
[1727172885259,2.34762304,2647.4,2647.3,1.1186]
[1727172885453,3.29199304,2647.4,2647.3,1.1186]
[1727172885749,1.36627789,2647.4,2647.3,3.79320985]
[1727172886156,1.36627789,2647.4,2647.3,3.79320631]
[1727172886454,1.36627789,2647.4,2647.3,4.17096631]
[1727172888261,1.36627789,2647.4,2647.3,2.69004783]
[1727172889759,1.36627789,2647.4,2647.3,4.2868458]
[1727172889948,1.36627789,2647.4,2647.3,2.31228783]
[1727172891056,1.36627789,2647.4,2647.3,4.2868458]
[1727172891555,3.54064789,2647.4,2647.3,3.1682458]
[1727172891758,5.83396304,2647.4,2647.3,0.99159369]
[1727172891957,5.83396304,2647.4,2647.3,2.18613463]
[1727172892153,5.83396304,2647.4,2647.3,0.99159369]
[1727172892460,5.83396304,2647.4,2647.3,2.18619281]
[1727172894255,5.83396304,2647.4,2647.3,2.18616554]
[1727172894951,5.83396304,2647.4,2647.3,0.99159369]
[1727172895157,5.83396304,2647.4,2647.3,2.18616753]
[1727172896063,5.83396304,2647.4,2647.3,0.99159369]
[1727172896260,5.83396304,2647.4,2647.3,2.18602547]
[1727172896656,2.91971,2647.4,2647.3,2.58592547]
[1727172896861,2.91971,2647.4,2647.3,2.58589599]
[1727172900461,2.91971,2647.4,2647.3,1.39146421]
[1727172900665,2.91971,2647.4,2647.3,2.58576092]
[1727172900860,2.91971,2647.4,2647.3,0.3999]
[1727172903455,0.37779,2647.1,2647.0,4.341]
[1727172903657,0.37779,2647.1,2647.0,4.3623]
[1727172903955,2.35614881,2647.1,2647.0,4.3623]
[1727172904260,2.35614881,2647.1,2647.0,4.7401]
[1727172907860,0.37779,2647.1,2647.0,10.29661724]
[1727172908366,0.37779,2647.1,2647.0,9.91881724]
[1727172908559,0.98919969,2647.2,2647.0,9.91881724]
[1727172908869,3.08139954,2647.4,2647.0,9.91881724]
[1727172908870,1.36694969,2647.4,2647.3,0.37776]
[1727172909066,0.98919969,2647.5,2647.4,0.37774]
[1727172909366,1.97835881,2647.8,2647.4,0.37774]
[1727172909367,0.98919969,2647.7,2647.6,0.37771]
[1727172909671,0.37769,2647.8,2647.7,0.37769]
[1727172909858,3.30568,2647.9,2647.8,0.37769]
[1727172910058,3.30568,2647.9,2647.8,2.35315338]
[1727172910270,3.30568,2647.9,2647.8,3.46129685]
[1727172910880,0.37768,2647.9,2647.8,3.46129685]
[1727172912668,0.37768,2647.9,2647.8,1.97546338]
[1727172912966,2.59687969,2647.9,2647.8,1.77175525]
[1727172913272,1.60768,2647.9,2647.8,1.77175525]
[1727172915868,1.60768,2647.9,2647.8,0.7818]
[1727172916572,1.60768,2647.9,2647.8,1.1725]
[1727172917172,3.58276144,2647.9,2647.8,1.1725]
[1727172917368,3.58271728,2647.9,2647.8,1.1725]
[1727172918070,2.35271728,2647.9,2647.8,1.1725]
[1727172918770,3.58237691,2647.9,2647.8,1.1725]
[1727172922372,3.58237691,2647.9,2647.8,1.55019]
[1727172922675,3.58237691,2647.9,2647.8,1.1725]
[1727172922870,1.60768,2647.9,2647.8,1.1725]
[1727172929276,1.60768,2647.9,2647.8,1.55019]
[1727172929479,1.60768,2647.9,2647.8,1.1725]
[1727172929778,1.60768,2647.9,2647.8,1.55019]
[1727172929978,1.60768,2647.9,2647.8,1.1725]
[1727172930975,3.08699628,2647.9,2647.8,1.55019]
[1727172931381,1.85699628,2647.9,2647.8,1.55019]
[1727172931677,1.47931628,2648.0,2647.8,6.55699]
[1727172931877,0.98548964,2648.2,2647.9,3.7768]
[1727172932081,0.98548964,2648.3,2648.2,0.37763]
[1727172932267,0.98548964,2648.4,2648.3,0.37761]
[1727172932576,1.36307964,2648.5,2648.3,1.13871]
[1727172932775,0.98548964,2648.5,2648.4,0.3776]
[1727172933676,0.98548964,2648.6,2648.4,0.3776]
[1727172933882,0.98548964,2648.6,2648.3,1.13871]
[1727172934180,0.98548964,2648.5,2648.3,1.13871]
[1727172935082,0.98548964,2648.5,2648.3,1.52881]
[1727172935571,0.37758,2648.6,2648.3,1.52881]
[1727172935572,1.36306964,2648.6,2648.3,1.52881]
[1727172937479,0.37758,2648.6,2648.3,1.52881]
[1727172938375,0.37758,2648.6,2648.4,0.3776]
[1727172940282,1.60757,2648.7,2648.5,0.37759]
[1727172940487,0.37758,2648.6,2648.4,0.37759]
[1727172942174,0.3776,2648.4,2648.3,1.52881]
[1727172942481,0.3776,2648.5,2648.4,0.3776]
[1727172942680,0.3776,2648.5,2648.3,1.52881]
[1727172943080,0.3776,2648.5,2648.4,0.3776]
[1727172945483,0.3776,2648.5,2648.3,1.5288]
[1727172945684,0.3776,2648.5,2648.4,0.3776]
[1727172947678,0.37758,2648.6,2648.4,0.3776]
[1727172950280,0.37758,2648.6,2648.3,1.1512]
[1727172950479,0.37759,2648.5,2648.3,1.1512]
[1727172951383,0.37759,2648.5,2648.4,0.37759]
[1727172951686,0.263,2649.0,2648.5,0.94397]
[1727172951887,0.263,2649.3,2649.2,0.37749]
[1727172952090,0.94358,2649.6,2649.2,1.23]
[1727172952590,0.94367,2649.4,2649.1,4.4378]
[1727172952893,0.37749,2649.2,2649.1,3.2078]
[1727172953084,1.36297964,2649.2,2649.1,3.2078]
[1727172953586,0.98400778,2649.2,2649.1,3.2078]
[1727172953984,1.36149778,2649.2,2649.1,3.2078]
[1727172956087,0.37749,2649.2,2649.1,3.2078]
[1727172956291,1.36127905,2649.2,2649.1,3.2078]
[1727172958186,1.36127905,2649.2,2649.0,0.3794]
[1727172958377,0.98378905,2649.2,2649.1,0.3775]
[1727172958689,0.98378905,2649.3,2649.2,0.37749]
[1727172958888,0.98378905,2649.3,2649.2,1.23]
[1727172959395,1.36124905,2649.4,2649.2,1.23]
[1727172960099,0.37746,2649.4,2649.2,1.23]
[1727172960391,0.37747,2649.3,2649.2,1.23]
[1727172961280,0.37747,2649.4,2649.2,1.23]
[1727172961593,0.37747,2649.4,2649.2,1.60749]
[1727172961890,0.37747,2649.4,2649.2,1.23]
[1727172962092,0.37747,2649.4,2649.2,1.60748]
[1727172962785,3.81259,2649.6,2649.2,1.23]
[1727172962786,0.37747,2649.3,2649.2,1.23]
[1727172963395,0.37747,2649.4,2649.2,1.60749]
[1727172963694,0.37743,2649.6,2649.3,0.37747]
[1727172963899,0.37743,2649.6,2649.2,4.4378]
[1727172963900,0.37743,2649.6,2649.5,1.23]
[1727172966984,3.81253,2649.8,2649.5,1.60744]
[1727172966985,0.37742,2649.7,2649.5,1.60744]
[1727172967385,0.37743,2649.6,2649.5,1.23]
[1727172967592,0.37742,2649.7,2649.5,1.60744]
[1727172968293,1.36120905,2649.7,2649.5,1.60744]
[1727172968497,0.98378905,2649.7,2649.5,1.23]
[1727172968797,0.37741,2649.8,2649.7,0.37742]
[1727172968991,0.37741,2649.8,2649.7,1.5965]
[1727172970494,0.37741,2649.8,2649.7,1.97392]
[1727172970691,0.37741,2649.8,2649.7,1.5965]
[1727172971298,0.37739,2649.9,2649.7,1.5965]
[1727172971600,0.37739,2649.9,2649.8,0.3774]
[1727172971792,0.37739,2649.9,2649.8,0.7608]
[1727172971992,0.37739,2649.9,2649.8,0.3834]
[1727172972187,0.37739,2649.9,2649.8,0.7608]
[1727172972387,0.37739,2649.9,2649.8,0.3834]
[1727172972896,0.98378905,2650.0,2649.9,0.37739]
[1727172973199,0.98378905,2650.2,2650.0,0.37736]
[1727172973392,0.98378905,2650.3,2650.2,0.37734]
[1727172973592,0.98378905,2650.3,2650.2,1.60734]
[1727172973793,0.98378905,2650.3,2650.2,1.99074]
[1727172974504,0.37731,2650.5,2650.4,0.37732]
[1727172974694,1.36108905,2650.6,2650.4,1.60732]
[1727172974887,0.3773,2650.5,2650.4,1.60732]
[1727172975492,0.3773,2650.5,2650.4,1.23]
[1727172975992,0.37729,2650.6,2650.4,1.60731]
[1727172976193,3.7994,2650.9,2650.5,0.3773]
[1727172976393,0.37728,2650.7,2650.6,1.5922]
[1727172978101,0.37727,2650.7,2650.6,1.5922]
[1727172978399,0.37726,2650.8,2650.6,1.5922]
[1727172978901,0.37726,2650.8,2650.6,0.3622]
[1727172979396,0.37727,2650.8,2650.6,0.3622]
[1727172979804,0.37727,2650.7,2650.6,0.3622]
[1727172979993,0.7594,2650.9,2650.6,1.5922]
[1727172980193,1.70253,2650.9,2650.5,1.23]
[1727172980391,0.37728,2650.7,2650.5,1.23]
[1727172980593,0.37728,2650.7,2650.5,1.6073]
[1727172981790,1.70253,2650.9,2650.6,1.60729]
[1727172981995,0.37726,2650.8,2650.7,0.37727]
[1727172982304,0.37725,2650.9,2650.8,1.23]
[1727172984500,0.37725,2650.9,2650.7,0.3739]
[1727172984823,0.37726,2650.8,2650.7,0.3739]
[1727172985003,0.75146,2650.8,2650.7,0.3739]
[1727172985201,11.9139202,2651.8,2650.7,0.3739]
[1727172985202,0.98059362,2651.6,2650.7,6.4439]
[1727172985398,0.088,2652.3,2650.8,4.14925]
[1727172985597,0.37699,2652.7,2652.2,4.4378]
[1727172985598,0.3676,2652.7,2652.2,4.4378]
[1727172985795,1.06091368,2652.3,2652.2,3.58486]
[1727172986002,0.3676,2652.7,2652.3,0.37704]
[1727172986003,1.06091368,2652.4,2652.3,0.37704]
[1727172986196,1.06091368,2652.4,2652.2,3.2078]
[1727172986399,1.06091368,2652.3,2652.2,3.2078]
[1727172986699,1.06091368,2652.3,2651.6,3.2078]
[1727172987010,1.06091368,2651.9,2651.6,2.65]
[1727172987304,1.06091368,2651.8,2651.6,2.65]
[1727172987602,0.3676,2651.7,2651.6,2.65]
[1727172987904,0.7595,2652.2,2651.7,3.7712]
[1727172988093,0.7595,2652.2,2651.6,11.8578]
[1727172988094,0.7595,2652.2,2652.1,2.65]
[1727172988293,1.06091368,2652.2,2652.1,2.65]
[1727172994707,7.06091368,2652.2,2651.2,3.2078]
[1727172994909,1.06091368,2651.4,2651.2,3.2958]
[1727172995101,1.06091368,2651.4,2651.3,2.65]
[1727172995408,0.3615,2651.8,2651.3,6.422]
[1727172995612,0.3615,2651.8,2651.2,9.2078]
[1727172995613,0.3615,2651.8,2651.6,2.65]
[1727172996015,1.06091368,2651.7,2651.6,2.65]
[1727172996203,0.3615,2651.8,2651.6,2.65]
[1727172996510,1.42241368,2651.8,2651.6,2.65]
[1727172997899,1.06091368,2651.7,2651.6,2.65]
[1727172998108,1.42241368,2651.8,2651.6,2.65]
[1727172998305,1.06091368,2651.8,2651.7,0.37713]
[1727172998710,0.3619,2652.1,2651.7,9.7712]
[1727172998906,3.58479,2652.7,2652.0,5.8578]
[1727172998907,0.7294,2652.6,2652.0,5.8578]
[1727172999221,1.06091368,2652.3,2652.0,5.8578]
[1727173000505,1.06091368,2652.2,2652.0,5.8578]
[1727173001224,0.37703,2652.4,2652.0,5.8578]
[1727173001514,2.20741368,2652.1,2652.0,5.8578]
[1727173001717,2.20741368,2652.1,2652.0,3.2078]
[1727173002515,1.81211368,2652.1,2652.0,3.2078]
[1727173002708,1.81211368,2652.1,2652.0,6.23489]
[1727173002709,1.43621368,2652.1,2652.0,6.23489]
[1727173003111,1.43621368,2652.1,2652.0,3.2078]
[1727173006115,1.43621368,2652.1,2652.0,3.58489]
[1727173006414,1.43621368,2652.1,2652.0,6.23489]
[1727173007321,4.082,2653.3,2652.0,15.6282]
[1727173007614,3.6012,2652.9,2652.1,3.573]
[1727173007812,1.06091368,2652.3,2652.1,3.2078]
[1727173008121,0.37708,2652.1,2651.8,3.2078]
[1727173008413,3.2078,2652.6,2651.9,2.65]
[1727173008714,1.42901368,2652.1,2651.9,0.3771]
[1727173009014,1.42901368,2652.1,2652.0,5.8578]
[1727173009217,0.74517,2652.1,2652.0,3.2078]
[1727173009419,1.80608368,2652.1,2652.0,3.2078]
[1727173010418,0.37711,2651.9,2651.6,5.8578]
[1727173010616,1.43802368,2651.9,2651.6,5.8578]
[1727173010819,0.3783,2651.8,2651.6,5.8578]
[1727173011209,0.3783,2651.8,2651.6,10.00614]
[1727173011405,0.3783,2651.8,2651.6,9.629]
[1727173011617,0.3783,2651.8,2651.6,10.00614]
[1727173011922,0.3783,2651.8,2651.6,9.629]
[1727173012311,1.06091368,2651.7,2651.6,5.8578]
[1727173012514,1.43804368,2651.7,2651.6,5.8578]
[1727173012717,0.37716,2651.5,2651.4,2.65]
[1727173012916,1.43807368,2651.5,2651.4,2.65]
[1727173013618,1.06091368,2651.5,2651.4,2.65]
[1727173015121,1.06091368,2651.5,2651.4,3.02717]
[1727173015319,1.06091368,2651.5,2651.4,2.65]
[1727173016014,1.06091368,2651.5,2651.4,3.02717]
[1727173016214,0.94256,2652.5,2651.4,3.02717]
[1727173016215,0.37706,2652.2,2651.4,12.4212]
[1727173016409,1.70879,2652.4,2652.0,2.65]
[1727173016610,1.70879,2652.4,2651.9,3.2078]
[1727173016814,1.43800368,2652.0,2651.9,3.2078]
[1727173017019,1.43800368,2652.0,2651.1,0.509]
[1727173017020,0.37712,2651.8,2651.6,2.65]
[1727173017229,1.44121368,2651.7,2651.6,2.65]
[1727173017718,1.81834368,2651.7,2651.6,2.65]
[1727173020127,1.44121368,2651.7,2651.6,2.65]
[1727173021322,1.44121368,2651.7,2651.6,3.02714]
[1727173021527,1.44121368,2651.7,2651.6,2.65]
[1727173022124,1.81834368,2651.7,2651.6,2.65]
[1727173023428,1.44121368,2651.7,2651.6,3.02714]
[1727173024527,1.81834368,2651.7,2651.6,2.65]
[1727173025130,1.44121368,2651.7,2651.6,3.02714]
[1727173025925,1.81834368,2651.7,2651.6,2.65]
[1727173026330,1.44121368,2651.7,2651.6,3.02714]
[1727173027237,1.44121368,2651.7,2651.6,2.65]
[1727173027438,1.81834368,2651.7,2651.6,2.65]
[1727173027731,1.44121368,2651.7,2651.6,2.65]
[1727173028119,1.81834368,2651.7,2651.6,2.65]
[1727173028421,1.44121368,2651.7,2651.5,1.36117265]
[1727173028622,1.06091368,2651.6,2651.5,0.37715]
[1727173028825,1.06091368,2651.6,2651.5,1.58555453]
[1727173029234,1.06091368,2651.6,2651.5,2.17516312]
[1727173029420,1.43805368,2651.6,2651.5,1.79801312]
[1727173029737,1.43805368,2651.6,2651.5,1.20840453]
[1727173030235,1.43805368,2651.6,2651.5,2.68847613]
[1727173031225,1.43805368,2651.6,2651.5,1.20840453]
[1727173031435,1.43805368,2651.6,2651.5,2.69036919]
[1727173032825,1.43805368,2651.6,2651.5,1.58556453]
[1727173032826,1.06091368,2651.6,2651.5,1.58556453]
[1727173034926,1.06091368,2651.6,2651.5,1.97746453]
[1727173035141,1.06091368,2651.6,2651.5,3.94550983]
[1727173035633,1.06091368,2651.6,2651.5,2.7371053]
[1727173035836,1.06091368,2651.6,2651.5,4.53726787]
[1727173036543,1.06091368,2651.6,2651.5,4.9991863]
[1727173037137,1.06091368,2651.6,2651.5,4.53726787]
[1727173037939,1.06091368,2651.6,2651.5,2.92248847]
[1727173038238,0.98402265,2652.1,2651.8,0.37712]
[1727173038439,0.98402265,2652.1,2652.0,7.1776]
[1727173038440,1.06091368,2652.1,2652.0,7.1776]
[1727173038646,1.06091368,2652.1,2652.0,8.03504964]
[1727173038833,1.06091368,2652.1,2652.0,10.40162827]
[1727173039037,1.06091368,2652.1,2652.0,8.42604964]
[1727173039243,0.98402265,2652.3,2652.2,0.37706]
[1727173039535,1.34422265,2652.4,2652.3,0.37705]
[1727173039734,0.74121,2652.6,2652.3,0.37705]
[1727173039735,0.98402265,2652.5,2652.4,0.37703]
[1727173039934,1.72523265,2652.6,2652.5,2.65]
[1727173040139,0.74121,2652.6,2652.5,4.82717964]
[1727173040446,2.78968011,2652.6,2652.5,4.82694434]
[1727173040841,2.41267011,2652.6,2652.5,4.82694434]
[1727173041434,2.78967011,2652.6,2652.5,4.44992434]
[1727173041641,2.78967011,2652.6,2652.5,3.86029317]
[1727173041845,2.41267011,2652.6,2652.5,4.82676342]
[1727173042746,1.80211368,2652.6,2652.5,3.23945025]
[1727173044040,1.31957,2652.5,2652.4,0.98726757]
[1727173044246,0.37706,2652.2,2652.1,3.63726757]
[1727173044437,3.86147275,2652.2,2652.1,1.57679944]
[1727173044640,0.37707,2652.1,2652.0,0.98726757]
[1727173044837,0.37707,2652.1,2652.0,0.58956179]
[1727173044838,0.76937,2652.1,2652.0,0.58956179]
[1727173045043,2.77297368,2652.1,2652.0,0.58956179]
[1727173045233,0.37709,2652.0,2651.9,3.63726757]
[1727173045542,2.91894425,2652.0,2651.9,4.22680368]
[1727173045742,2.91894425,2652.0,2651.9,4.22683054]
[1727173046135,2.91894425,2652.0,2651.9,4.68854419]
[1727173046336,2.91894425,2652.0,2651.9,2.03854419]
[1727173046537,2.38073368,2652.0,2651.9,1.05129521]
[1727173046737,2.38073368,2652.0,2651.9,0.46171365]
[1727173046948,2.38073368,2652.0,2651.7,5.8578]
[1727173046949,0.37712,2651.8,2651.7,5.8578]
[1727173047147,1.43803368,2651.8,2651.7,5.8578]
[1727173050643,1.43803368,2651.8,2651.7,7.06784328]
[1727173051447,1.06091368,2651.8,2651.7,7.06784328]
[1727173051752,1.43803368,2651.8,2651.7,7.06784328]
[1727173052356,1.06091368,2651.8,2651.7,8.21527328]
[1727173052650,1.43803368,2651.8,2651.7,7.83814328]
[1727173053753,1.43803368,2651.8,2651.7,8.42776298]
[1727173054253,1.43803368,2651.8,2651.7,7.83814328]
[1727173054849,1.43803368,2651.8,2651.7,7.83823657]
[1727173055647,1.06091368,2651.8,2651.7,8.21536657]
[1727173055842,1.06091368,2651.8,2651.7,8.80498143]
[1727173056555,1.06091368,2651.8,2651.7,8.8049793]
[1727173057256,1.06091368,2651.8,2651.7,9.26680606]
[1727173057960,0.3771,2652.0,2651.9,0.3771]
[1727173058157,0.3771,2652.0,2651.9,5.28867606]
[1727173058351,1.43801368,2652.0,2651.9,5.28867606]
[1727173058657,1.06091368,2652.0,2651.9,4.23723657]
[1727173059047,1.73258647,2652.2,2652.1,0.37707]
[1727173059246,0.74517,2652.2,2652.1,2.17675496]
[1727173059443,1.80608368,2652.2,2652.1,1.79968496]
[1727173059746,1.80608368,2652.2,2652.1,1.79956825]
[1727173060152,1.80608368,2652.2,2652.1,2.17663825]
[1727173061048,1.43797368,2652.2,2652.1,2.17663825]
[1727173061555,1.43797368,2652.2,2652.1,1.79956825]
[1727173061957,1.43797368,2652.2,2652.1,1.21001986]
[1727173063452,2.38063368,2652.2,2652.1,1.21001986]
[1727173063655,3.36805015,2652.2,2652.1,2.69108102]
[1727173063857,3.36805015,2652.2,2652.1,1.21001986]
[1727173064057,3.36805015,2652.2,2652.1,2.69110795]
[1727173064561,3.36805015,2652.2,2652.1,2.69114256]
[1727173064562,2.38063368,2652.2,2652.1,2.69114256]
[1727173064957,2.38063368,2652.2,2652.1,1.21005447]
[1727173065351,3.32329368,2652.2,2652.1,1.21005447]
[1727173065558,3.32329368,2652.2,2651.9,2.65]
[1727173065559,1.31982,2652.0,2651.9,4.13108809]
[1727173065755,0.37712,2651.8,2651.7,3.63751361]
[1727173065961,3.32370368,2651.7,2651.6,4.19531487]
[1727173066259,1.32001,2651.6,2651.5,2.65]
[1727173066455,2.75062368,2651.6,2651.5,2.65]
[1727173069463,2.75062368,2651.6,2651.5,3.23970036]
[1727173071957,2.75062368,2651.6,2651.5,2.65]
[1727173072159,0.37717,2651.4,2651.3,3.63751487]
[1727173072458,2.91903804,2651.4,2651.3,3.23970181]
[1727173072768,2.38102368,2651.4,2651.3,3.23970181]
[1727173072961,2.38102368,2651.4,2651.3,2.65]
[1727173073267,2.38102368,2651.4,2651.3,3.23971798]
[1727173073460,2.38102368,2651.4,2651.3,2.65]
[1727173075065,2.38102368,2651.4,2651.3,4.13065304]
[1727173079568,6.53176368,2651.4,2651.3,1.48065304]
[1727173079770,1.06091368,2651.3,2651.2,0.38708488]
[1727173079967,2.38122368,2651.0,2650.9,1.48032732]
[1727173080172,1.32036,2650.9,2650.8,4.68812732]
[1727173080375,1.43815368,2650.9,2650.8,4.68812732]
[1727173080873,1.43815368,2650.9,2650.8,3.2078]
[1727173082979,1.43815368,2650.9,2650.8,3.58506]
[1727173083164,1.43815368,2650.9,2650.8,3.2078]
[1727173083370,1.43815368,2650.9,2650.8,3.58506]
[1727173083570,1.43815368,2650.9,2650.8,3.2078]
[1727173084571,1.43815368,2650.9,2650.8,3.58506]
[1727173085760,3.32439368,2650.9,2650.8,3.2078]
[1727173086075,0.3773,2650.5,2650.4,3.2078]
[1727173086467,1.43821368,2650.5,2650.4,3.2078]
[1727173086863,4.09661368,2650.5,2650.0,1.48032732]
[1727173087167,1.32081,2650.0,2649.9,3.2078]
[1727173087363,2.38172368,2650.0,2649.9,3.2078]
[1727173087566,2.76522368,2650.0,2649.9,3.2078]
[1727173087869,0.37742,2649.7,2649.6,0.3847]
[1727173088068,1.43833368,2649.7,2649.6,0.3847]
[1727173089779,1.06091368,2649.7,2649.2,4.50780732]
[1727173089982,0.37746,2649.4,2649.2,2.65]
[1727173090169,1.06091368,2649.3,2649.2,2.65]
[1727173090365,1.06091368,2649.3,2649.2,3.02749]
[1727173090572,4.3767,2649.9,2649.2,6.4244]
[1727173090766,1.06091368,2649.5,2649.4,6.23526]
[1727173090971,0.76309,2649.9,2649.7,0.37741]
[1727173091170,0.3857,2649.9,2649.7,0.37741]
[1727173091371,1.06091368,2649.8,2649.7,0.37741]
[1727173091571,1.06091368,2649.8,2649.6,3.39602]
[1727173091771,1.06091368,2649.7,2649.6,3.39602]
[1727173093070,1.43833368,2649.7,2649.6,3.0186]
[1727173093271,1.43833368,2649.7,2649.6,0.3686]
[1727173093476,0.37743,2649.6,2649.4,3.58525]
[1727173093781,1.06091368,2649.5,2649.4,3.58525]
[1727173094669,1.06091368,2649.5,2649.4,6.23525]
[1727173099086,1.43835368,2649.5,2649.4,6.23525]
[1727173099378,1.80225368,2649.5,2649.4,3.2078]
[1727173099775,3.31205368,2649.5,2649.1,3.5764]
[1727173099970,3.31205368,2649.5,2648.9,0.37753]
[1727173099971,0.37752,2649.0,2648.9,0.37753]
[1727173100483,1.43844368,2649.0,2648.9,0.37753]
[1727173100682,1.06091368,2649.0,2648.9,0.37753]
[1727173100988,0.3639,2649.1,2648.9,0.37753]
[1727173101076,0.3639,2649.1,2649.0,3.02751]
[1727173101276,0.37748,2649.3,2649.2,0.37748]
[1727173101585,1.43839368,2649.3,2649.1,0.37749]
[1727173101781,1.06091368,2649.2,2649.1,0.37749]
[1727173102283,0.3643,2649.4,2649.3,0.37747]
[1727173102284,0.74176,2649.4,2649.3,0.37747]
[1727173102883,1.80267368,2649.4,2649.3,0.37747]
[1727173103674,1.42521368,2649.4,2649.1,3.2078]
[1727173103875,1.06091368,2649.3,2649.1,3.2078]
[1727173104088,1.43839368,2649.3,2649.2,0.37747]
[1727173104384,0.37748,2649.3,2649.2,0.37747]
[1727173104580,1.43839368,2649.3,2649.2,0.37747]
[1727173104776,0.37749,2649.2,2649.1,3.2078]
[1727173104977,1.06091368,2649.2,2648.8,6.2273]
[1727173105172,1.06091368,2649.0,2648.9,0.37753]
[1727173109887,1.06091368,2649.0,2648.9,1.32136]
[1727173110083,1.06091368,2649.0,2648.9,2.26519]
[1727173110389,0.75114,2649.6,2649.4,0.37744]
[1727173110390,0.3659,2649.5,2649.4,0.37744]
[1727173110684,1.42681368,2649.5,2649.4,0.37744]
[1727173111181,1.80425368,2649.5,2649.4,0.37744]
[1727173112284,0.37747,2649.4,2649.3,0.37746]
[1727173112688,1.43838368,2649.4,2649.3,0.37746]
[1727173112888,1.81718368,2649.4,2649.3,0.37746]
[1727173114696,1.43971368,2649.4,2649.3,0.37746]
[1727173117192,1.06091368,2649.4,2649.3,1.32115]
[1727173117591,1.06091368,2649.4,2649.3,1.69155]
[1727173119194,1.06091368,2649.4,2649.3,0.74786]
[1727173119694,1.06091368,2649.4,2649.3,1.69155]
[1727173123400,1.06091368,2649.4,2649.3,2.63524]
[1727173123799,1.06091368,2649.4,2649.3,5.28524]
[1727173124399,0.3862,2649.7,2649.6,0.37743]
[1727173124799,1.44711368,2649.7,2649.6,0.37743]
[1727173127301,1.44711368,2649.7,2649.6,1.5837362]
[1727173127503,1.44711368,2649.7,2649.6,1.58372968]
[1727173128301,1.44711368,2649.7,2649.6,3.064057]
[1727173129006,1.44711368,2649.7,2649.6,1.58372968]
[1727173129308,1.44711368,2649.7,2649.6,3.064057]
[1727173129898,1.44711368,2649.7,2649.6,3.06524093]
[1727173130300,1.44711368,2649.7,2649.6,1.58491361]
[1727173132397,1.06091368,2649.7,2649.6,1.58491361]
[1727173132602,1.74449545,2650.1,2650.0,0.37737]
[1727173132802,0.7585,2650.1,2650.0,3.56257006]
[1727173133002,0.7585,2650.1,2650.0,1.58485361]
[1727173133003,1.81941368,2650.1,2650.0,1.58485361]
[1727173133404,3.30036804,2650.1,2649.8,1.48337336]
[1727173133601,1.06091368,2649.9,2649.8,1.86077336]
[1727173133805,1.43830368,2649.9,2649.8,1.58713173]
[1727173134004,1.43830368,2649.9,2649.8,3.07050509]
[1727173134204,1.43830368,2649.9,2649.8,1.58713173]
[1727173134396,1.06091368,2649.9,2649.8,1.58713173]
[1727173134709,1.06091368,2649.9,2649.8,1.58704962]
[1727173136610,1.43830368,2649.9,2649.8,1.58704962]
[1727173136998,1.06091368,2649.9,2649.8,1.58704962]
[1727173137407,2.04947089,2649.9,2649.8,3.07042298]
[1727173137711,0.98855721,2650.0,2649.9,0.37739]
[1727173137908,2.04947089,2650.0,2649.9,3.33915653]
[1727173138311,2.04947089,2650.0,2649.9,6.54695653]
[1727173138511,2.04947089,2650.0,2649.9,6.54693316]
[1727173139615,2.04947089,2650.0,2649.9,6.5463107]
[1727173139820,2.04947089,2650.0,2649.9,7.4897807]
[1727173140827,2.04947089,2650.0,2649.9,8.97252978]
[1727173141012,0.98855721,2650.3,2650.2,0.37734]
[1727173141208,1.1421,2650.5,2650.4,0.37732]
[1727173141414,1.1421,2650.5,2650.4,3.0681163]
[1727173141709,2.20301368,2650.5,2650.4,3.0681163]
[1727173142314,2.20301368,2650.5,2650.4,1.58634716]
[1727173142513,2.20301368,2650.5,2650.4,3.0681163]
[1727173142716,2.20301368,2650.5,2650.4,1.58634716]
[1727173143014,2.20301368,2650.5,2650.4,1.58550324]
[1727173143410,2.20301368,2650.5,2650.4,3.06628151]
[1727173146321,2.20301368,2650.5,2650.4,1.58550324]
[1727173146815,2.20301368,2650.5,2650.2,3.2078]
[1727173146816,2.20301368,2650.5,2650.2,5.06590827]
[1727173147120,1.43824368,2650.3,2650.2,3.2078]
[1727173147816,2.38157368,2650.3,2650.2,3.2078]
[1727173148121,1.43824368,2650.3,2650.2,3.2078]
[1727173149821,2.38157368,2650.3,2650.2,3.2078]
[1727173150425,0.37736,2650.1,2650.0,1.85814827]
[1727173150615,0.37739,2649.9,2649.8,4.68857827]
[1727173150817,1.43830368,2649.9,2649.8,4.4147338]
[1727173151011,1.43830368,2649.9,2649.8,3.2078]
[1727173151419,0.37742,2649.7,2649.6,1.48077827]
[1727173151620,1.43833368,2649.7,2649.6,2.68791422]
[1727173151826,1.06091368,2649.7,2649.6,3.06534422]
[1727173152424,1.06091368,2649.7,2649.6,3.06549726]
[1727173154522,1.06091368,2649.7,2649.6,3.06538151]
[1727173154725,1.06091368,2649.7,2649.6,1.58471899]
[1727173156026,1.43833368,2649.7,2649.6,3.06559606]